bitfinex/quotes_BTCUSD_20220226
["timestamp","ask_amount","ask_price","bid_price","bid_amount"]
[1645891276662,0.39319625,39231.0,39230.0,0.0001]
[1645891277467,0.69319625,39231.0,39230.0,0.0001]
[1645891277665,1.46999625,39231.0,39230.0,0.0001]
[1645891277866,1.23457625,39231.0,39230.0,0.0001]
[1645891278065,0.45777625,39231.0,39230.0,0.0001]
[1645891278264,0.75777625,39231.0,39230.0,0.0001]
[1645891278466,0.75777625,39231.0,39228.0,0.00022881]
[1645891278467,1.53457625,39231.0,39228.0,0.00022881]
[1645891278667,1.53457625,39231.0,39229.0,0.00036062]
[1645891278866,1.24914036,39230.0,39229.0,0.00036062]
[1645891279069,1.2603529,39230.0,39229.0,0.00036062]
[1645891279718,1.2603529,39230.0,39228.0,0.00022881]
[1645891279914,1.2603529,39230.0,39228.0,0.00058944]
[1645891280117,1.0768,39230.0,39228.0,0.00058944]
[1645891280316,0.3,39229.0,39228.0,0.00058944]
[1645891280516,1.08801254,39229.0,39228.0,0.00058944]
[1645891280916,1.26036784,39229.0,39228.0,0.00022881]
[1645891281321,1.08801254,39229.0,39228.0,0.00022881]
[1645891281717,1.26037442,39229.0,39228.0,0.00022881]
[1645891281918,1.08801254,39229.0,39228.0,0.00022881]
[1645891282118,0.31121254,39229.0,39228.0,0.00022881]
[1645891282420,0.01121254,39229.0,39228.0,0.00022881]
[1645891282621,0.01321254,39229.0,39228.0,0.00022881]
[1645891282819,0.10521254,39229.0,39228.0,0.00022881]
[1645891283072,0.10521254,39229.0,39222.0,0.00833984]
[1645891283073,0.03949839,39221.0,39207.0,0.02544]
[1645891283273,0.03949839,39221.0,39220.0,0.38961045]
[1645891283473,0.05071093,39221.0,39220.0,0.39385028]
[1645891283673,0.05071093,39221.0,39220.0,0.39393307]
[1645891285874,0.0521039,39221.0,39220.0,0.39393307]
[1645891287222,0.0521039,39221.0,39220.0,0.78918892]
[1645891287424,0.0521039,39221.0,39220.0,0.5739741]
[1645891287621,0.0521039,39221.0,39220.0,0.39393307]
[1645891288623,0.0521039,39221.0,39220.0,0.69393307]
[1645891288822,0.0521039,39221.0,39220.0,0.90914789]
[1645891289621,4.46375758,39221.0,39220.0,0.9447919]
[1645891289821,4.46375758,39221.0,39220.0,1.16000672]
[1645891290222,4.46375758,39221.0,39220.0,0.9447919]
[1645891291271,4.46375758,39221.0,39220.0,0.9702319]
[1645891291474,4.46375758,39221.0,39220.0,1.23928994]
[1645891291670,4.46075607,39221.0,39220.0,1.23928994]
[1645891291871,4.46075607,39221.0,39220.0,1.21384994]
[1645891293172,4.46075607,39221.0,39220.0,1.20884994]
[1645891293771,4.46075607,39221.0,39220.0,0.9397919]
[1645891293975,4.46075607,39221.0,39220.0,0.38893307]
[1645891294424,4.46075607,39221.0,39220.0,0.38469324]
[1645891295423,4.46075607,39221.0,39220.0,0.38251876]
[1645891296423,4.46175607,39221.0,39220.0,0.38251876]
[1645891297728,4.46075607,39221.0,39220.0,0.38251876]
[1645891298371,4.46175607,39221.0,39220.0,0.38251876]
[1645891299175,4.46175607,39221.0,39220.0,0.38243597]
[1645891299773,4.46075607,39221.0,39220.0,0.38243597]
[1645891300374,4.45767361,39221.0,39220.0,0.38243597]
[1645891300573,4.45867361,39221.0,39220.0,0.38243597]
[1645891301722,4.45767361,39221.0,39220.0,0.38243597]
[1645891302528,4.45767361,39221.0,39220.0,0.37819614]
[1645891303525,4.45767361,39221.0,39220.0,0.37813079]
[1645891306569,4.45767361,39221.0,39220.0,0.38013079]
[1645891307770,4.45767361,39221.0,39220.0,0.37813079]
[1645891309219,4.45767361,39221.0,39220.0,0.38019614]
[1645891309420,4.45767361,39221.0,39220.0,0.3823706]
[1645891310421,4.45867361,39221.0,39220.0,0.65565994]
[1645891311021,4.45867361,39221.0,39220.0,0.38661041]
[1645891311425,4.45867361,39221.0,39220.0,0.39076743]
[1645891311821,4.45767361,39221.0,39220.0,0.39076743]
[1645891312424,4.45767361,39221.0,39220.0,0.39500724]
[1645891312977,4.45767361,39221.0,39220.0,0.38412009]
[1645891313178,0.19015158,39219.0,39218.0,0.22423525]
[1645891313378,0.19015158,39219.0,39218.0,0.60241925]
[1645891313979,0.19015158,39219.0,39218.0,0.379184]
[1645891314378,0.19015158,39219.0,39218.0,0.64823353]
[1645891314978,0.19015158,39219.0,39218.0,0.379184]
[1645891315179,0.20136412,39219.0,39218.0,0.001]
[1645891316383,0.57429412,39219.0,39218.0,0.001]
[1645891316580,0.74769233,39219.0,39218.0,0.001]
[1645891316822,0.57529412,39219.0,39218.0,0.001]
[1645891317223,0.27529412,39219.0,39218.0,0.001]
[1645891317622,0.57529412,39219.0,39218.0,0.001]
[1645891317825,0.57429412,39219.0,39218.0,0.001]
[1645891318024,0.74669233,39219.0,39218.0,0.001]
[1645891318424,0.57429412,39219.0,39218.0,0.001]
[1645891319224,0.58447412,39219.0,39218.0,0.001]
[1645891319427,1.2,39218.0,39216.0,0.0011]
[1645891319824,1.2,39216.0,39212.0,0.03090301]
[1645891320027,0.478184,39214.0,39212.0,0.02772854]
[1645891320227,0.678184,39213.0,39211.0,0.00258461]
[1645891320481,0.21480714,39213.0,39211.0,0.00258461]
[1645891320681,0.20897833,39214.0,39211.0,0.00258461]
[1645891320879,0.38957766,39215.0,39211.0,0.00258461]
[1645891321081,0.21717945,39215.0,39211.0,0.00258461]
[1645891321279,0.01121254,39213.0,39211.0,0.00258461]
[1645891321684,0.16757,39215.0,39211.0,0.00258461]
[1645891321880,0.378184,39214.0,39211.0,0.00258461]
[1645891322082,0.16757,39215.0,39211.0,0.00258461]
[1645891322482,4.57922368,39215.0,39211.0,0.00358461]
[1645891322686,4.41165368,39215.0,39211.0,0.00358461]
[1645891322885,0.01121254,39213.0,39211.0,0.00358461]
[1645891323087,0.08230254,39213.0,39211.0,0.00358461]
[1645891323283,0.07109,39213.0,39211.0,0.00394403]
[1645891324223,0.07109,39213.0,39211.0,0.00358461]
[1645891324424,0.01121254,39212.0,39211.0,0.00258461]
[1645891326625,0.01221254,39212.0,39211.0,0.00258461]
[1645891326828,0.04958677,39212.0,39211.0,0.00258461]
[1645891327827,0.04858677,39212.0,39211.0,0.00258461]
[1645891328677,0.04958677,39212.0,39210.0,0.02945258]
[1645891329077,0.378184,39211.0,39210.0,0.02909315]
[1645891329380,0.01121254,39211.0,39210.0,0.02909315]
[1645891330376,0.38939654,39211.0,39210.0,0.02909315]
[1645891330580,0.56279475,39211.0,39210.0,0.02909315]
[1645891330776,0.39039654,39211.0,39210.0,0.02909315]
[1645891331827,0.38939654,39211.0,39210.0,0.02909315]
[1645891332627,0.39039654,39211.0,39210.0,0.02909315]
[1645891332827,0.48535654,39211.0,39210.0,0.02909315]
[1645891333028,0.78535654,39211.0,39210.0,0.02909315]
[1645891333227,0.95775475,39211.0,39210.0,0.02909315]
[1645891333427,0.57957075,39211.0,39210.0,0.02909315]
[1645891333627,1.35637075,39211.0,39210.0,0.02909315]
[1645891333827,1.73355475,39211.0,39210.0,0.02909315]
[1645891334629,1.73455475,39211.0,39210.0,0.02909315]
[1645891335031,1.78565475,39211.0,39210.0,0.02909315]
[1645891335877,1.83465475,39211.0,39210.0,0.02909315]
[1645891336177,1.05785475,39211.0,39210.0,0.02909315]
[1645891336578,1.05885475,39211.0,39210.0,0.02909315]
[1645891336978,0.88645654,39211.0,39210.0,0.02909315]
[1645891337378,0.58645654,39211.0,39210.0,0.02909315]
[1645891337779,0.75785475,39211.0,39210.0,0.02909315]
[1645891337980,0.58545654,39211.0,39210.0,0.02909315]
[1645891338179,0.49049654,39211.0,39210.0,0.02909315]
[1645891338581,0.01121254,39211.0,39210.0,0.02909315]
[1645891339232,0.01121254,39211.0,39210.0,0.40727715]
[1645891339433,0.01121254,39211.0,39210.0,0.02909315]
[1645891340633,0.01121254,39211.0,39210.0,0.03109315]
[1645891341436,0.01121254,39211.0,39210.0,0.40927715]
[1645891341834,0.01121254,39211.0,39210.0,0.43271715]
[1645891342238,0.01121254,39211.0,39210.0,0.63271715]
[1645891342438,0.01121254,39211.0,39210.0,0.68381715]
[1645891342634,0.01121254,39211.0,39210.0,0.68581715]
[1645891343386,0.01121254,39211.0,39210.0,0.56037715]
[1645891343681,4.41165368,39215.0,39210.0,0.46037715]
[1645891343882,4.41165368,39215.0,39213.0,0.17490907]
[1645891344082,4.41165368,39215.0,39214.0,0.378225]
[1645891344584,4.41165368,39215.0,39214.0,0.381225]
[1645891345583,4.42174497,39215.0,39214.0,0.381225]
[1645891345783,4.42174497,39215.0,39214.0,0.378225]
[1645891346583,4.42174497,39215.0,39214.0,0.380225]
[1645891347032,4.42174497,39215.0,39214.0,0.530225]
[1645891347240,4.42174497,39215.0,39214.0,0.656765]
[1645891347632,4.42174497,39215.0,39214.0,0.720529]
[1645891347829,4.42174497,39215.0,39214.0,0.718529]
[1645891348430,4.42174497,39215.0,39214.0,0.693089]
[1645891348632,4.42174497,39215.0,39214.0,0.629325]
[1645891348834,4.42174497,39215.0,39214.0,0.6290488]
[1645891349632,4.42174497,39215.0,39214.0,0.6544888]
[1645891350783,4.42174497,39215.0,39214.0,0.5544888]
[1645891352083,4.42174497,39215.0,39214.0,0.6544888]
[1645891352787,4.42174497,39215.0,39214.0,0.5544888]
[1645891353586,4.42174497,39215.0,39214.0,0.6544888]
[1645891354525,4.42174497,39215.0,39214.0,1.4312888]
[1645891355132,0.19015158,39219.0,39214.0,1.7812888]
[1645891355335,0.19015158,39219.0,39218.0,1.16286512]
[1645891355528,0.19015158,39219.0,39218.0,2.82152094]
[1645891355726,0.19015158,39219.0,39218.0,2.87152094]
[1645891357328,0.19015158,39219.0,39218.0,2.52152094]
[1645891357530,0.19015158,39219.0,39218.0,2.87152094]
[1645891358189,0.19015158,39219.0,39218.0,2.26089582]
[1645891358389,0.19015158,39219.0,39218.0,1.48409582]
[1645891358589,0.19015158,39219.0,39218.0,2.19715182]
[1645891358790,0.19015158,39219.0,39218.0,2.20015182]
[1645891359388,0.19015158,39219.0,39218.0,2.19715182]
[1645891359791,0.19015158,39219.0,39218.0,2.39715182]
[1645891360491,0.19015158,39219.0,39218.0,2.42264182]
[1645891361732,0.00035087,39222.0,39219.0,1.2]
[1645891361931,0.00035087,39222.0,39221.0,1.12715432]
[1645891362134,0.00035087,39222.0,39221.0,1.60647932]
[1645891362636,0.3,39238.0,39224.0,0.127497]
[1645891362833,0.21518183,39240.0,39226.0,0.063749]
[1645891363036,0.21518183,39240.0,39229.0,0.19505856]
[1645891363333,0.63356526,39241.0,39230.0,0.378225]
[1645891363334,0.51518183,39239.0,39230.0,0.378225]
[1645891363535,0.00139297,39234.0,39230.0,0.378225]
[1645891363932,0.00139297,39234.0,39223.0,0.378225]
[1645891364133,0.00173066,39234.0,39223.0,0.378225]
[1645891364533,0.00173066,39234.0,39222.0,0.176]
[1645891364534,0.1853953,39233.0,39225.0,0.002]
[1645891364935,0.00173066,39234.0,39226.0,0.378225]
[1645891365235,0.0003377,39231.0,39226.0,0.378225]
[1645891366277,0.00139297,39234.0,39226.0,0.378225]
[1645891366479,0.00033771,39230.0,39228.0,0.1799441]
[1645891366678,0.00033771,39230.0,39229.0,0.378225]
[1645891367579,0.00139297,39234.0,39229.0,0.378225]
[1645891367780,0.00033858,39231.0,39229.0,0.378225]
[1645891368579,0.00139297,39234.0,39229.0,0.378225]
[1645891368779,0.00139297,39234.0,39228.0,0.1799441]
[1645891368980,0.00033858,39232.0,39229.0,0.378225]
[1645891369441,0.00033858,39232.0,39224.0,0.003]
[1645891369640,0.00033858,39232.0,39223.0,0.1136]
[1645891369839,0.00139297,39234.0,39222.0,0.05]
[1645891370042,0.00033859,39230.0,39219.0,0.31183677]
[1645891370239,0.00033859,39230.0,39220.0,0.378225]
[1645891370442,0.00033859,39230.0,39225.0,0.17375973]
[1645891370641,0.00033859,39230.0,39226.0,0.378225]
[1645891371040,0.00139297,39234.0,39226.0,0.378124]
[1645891371241,0.00033853,39230.0,39226.0,0.378124]
[1645891372339,0.00139297,39234.0,39226.0,0.378124]
[1645891372541,0.00033853,39230.0,39226.0,0.378124]
[1645891373490,0.00139297,39234.0,39226.0,0.378124]
[1645891373689,0.00033853,39230.0,39226.0,0.378124]
[1645891374088,0.00033853,39230.0,39222.0,0.57236741]
[1645891374388,0.00033853,39230.0,39226.0,0.005]
[1645891374590,0.2048887,39234.0,39227.0,0.133154]
[1645891374891,0.00033854,39228.0,39227.0,0.378165]
[1645891375789,0.2048887,39234.0,39227.0,0.378165]
[1645891376191,0.00033854,39229.0,39227.0,0.378165]
[1645891376391,0.00033854,39229.0,39227.0,0.381165]
[1645891377026,0.00139297,39234.0,39227.0,0.381165]
[1645891377224,0.00139297,39234.0,39228.0,0.2979]
[1645891377426,0.00033853,39230.0,39229.0,0.133093]
[1645891378225,0.00139297,39234.0,39229.0,0.133093]
[1645891378425,0.00139297,39234.0,39231.0,0.378127]
[1645891379628,0.00139297,39234.0,39233.0,0.133075]
[1645891380488,0.00139297,39234.0,39233.0,0.185075]
[1645891380683,0.00139297,39234.0,39233.0,0.235075]
[1645891381082,0.00139297,39234.0,39233.0,0.560515]
[1645891381289,0.00139297,39234.0,39233.0,1.362975]
[1645891381489,0.21518183,39244.0,39235.0,0.378086]
[1645891381690,0.21518183,39247.0,39237.0,0.133053]
[1645891381884,0.21518183,39247.0,39238.0,0.3511]
[1645891382083,0.21518183,39247.0,39239.0,0.44177137]
[1645891382285,0.21518183,39247.0,39240.0,0.54805826]
[1645891382286,0.00036011,39241.0,39240.0,0.54805826]
[1645891382585,0.00036011,39241.0,39240.0,0.38095626]
[1645891382985,0.21518183,39246.0,39240.0,0.38095626]
[1645891383187,0.21518183,39247.0,39241.0,0.378165]
[1645891383385,0.0003601,39242.0,39241.0,0.678165]
[1645891384224,0.21518183,39247.0,39241.0,0.678165]
[1645891384425,0.21518183,39248.0,39241.0,0.678165]
[1645891384626,0.20529857,39248.0,39241.0,0.678165]
[1645891385325,0.28079648,39250.0,39241.0,0.678165]
[1645891385326,0.26886137,39249.0,39241.0,0.378165]
[1645891385525,0.28079648,39250.0,39241.0,0.678165]
[1645891386330,0.01193511,39250.0,39241.0,0.678165]
[1645891386527,0.01193511,39250.0,39241.0,0.681165]
[1645891386828,0.26886137,39251.0,39241.0,0.681165]
[1645891387127,0.0001569,39247.0,39241.0,0.681165]
[1645891387728,0.0001569,39247.0,39241.0,0.678165]
[1645891387975,0.1689231,39251.0,39241.0,0.678165]
[1645891388375,0.0001569,39246.0,39241.0,0.678165]
[1645891389178,0.1689231,39251.0,39242.0,0.3]
[1645891389477,0.1689231,39251.0,39243.0,0.132888]
[1645891389478,0.00036009,39245.0,39243.0,0.132888]
[1645891390178,0.1689231,39251.0,39243.0,0.132888]
[1645891390379,0.1689231,39251.0,39244.0,0.3]
[1645891390580,0.1689231,39251.0,39245.0,0.37812]
[1645891390581,0.00036008,39246.0,39245.0,0.37812]
[1645891391382,0.1689231,39251.0,39245.0,0.37812]
[1645891391837,0.00036008,39247.0,39245.0,0.37812]
[1645891392438,0.1689231,39251.0,39245.0,0.002]
[1645891392439,0.16641121,39251.0,39245.0,0.002]
[1645891392640,0.43527258,39251.0,39245.0,0.002]
[1645891393042,0.1,39248.0,39245.0,0.002]
[1645891393242,0.18777943,39240.0,39236.0,0.3]
[1645891393441,0.18777943,39240.0,39232.0,0.1161]
[1645891393442,0.18777943,39240.0,39237.0,0.378107]
[1645891394244,0.18777943,39240.0,39233.0,0.128035]
[1645891394441,0.18777943,39240.0,39237.0,0.004]
[1645891394642,0.18777943,39240.0,39238.0,0.128039]
[1645891394844,0.00206416,39244.0,39238.0,0.128039]
[1645891395242,0.00206416,39244.0,39239.0,0.3]
[1645891395484,0.00206416,39244.0,39240.0,0.378056]
[1645891395683,0.00206416,39244.0,39242.0,0.128021]
[1645891395882,0.00206416,39244.0,39243.0,0.378025]
[1645891396886,0.00206416,39244.0,39243.0,0.678025]
[1645891397283,0.00206416,39244.0,39243.0,0.728025]
[1645891397883,0.00206416,39244.0,39243.0,0.779125]
[1645891398083,0.00206416,39244.0,39243.0,0.829125]
[1645891398483,0.00206416,39244.0,39243.0,0.830125]
[1645891398685,0.21211766,39252.0,39243.0,0.830125]
[1645891398884,0.20711766,39253.0,39245.0,0.06371667]
[1645891399082,0.20711766,39253.0,39248.0,0.127996]
[1645891399339,0.1812,39254.0,39250.0,0.37795]
[1645891399542,0.26886137,39256.0,39250.0,0.37795]
[1645891399739,0.26886137,39256.0,39252.0,0.19309952]
[1645891399939,0.26886137,39257.0,39253.0,0.127977]
[1645891400137,0.33251202,39260.0,39253.0,0.127977]
[1645891400138,0.00034845,39255.0,39253.0,0.127977]
[1645891400341,0.00034845,39255.0,39254.0,0.3511]
[1645891400538,0.00034845,39255.0,39254.0,0.729007]
[1645891401139,0.2304136,39260.0,39254.0,0.729007]
[1645891401343,0.2304136,39260.0,39255.0,0.12797]
[1645891401344,0.00034845,39256.0,39255.0,0.12797]
[1645891401540,0.00034845,39256.0,39255.0,0.17797]
[1645891401740,0.00034845,39256.0,39255.0,0.22797]
[1645891402046,0.00034845,39256.0,39255.0,0.17797]
[1645891402239,0.2304136,39260.0,39255.0,0.17797]
[1645891402641,0.2304136,39260.0,39254.0,0.0511]
[1645891402642,0.00033682,39257.0,39256.0,0.378107]
[1645891403478,0.49927497,39260.0,39256.0,0.378107]
[1645891403679,0.00033681,39258.0,39256.0,0.378107]
[1645891404079,0.00033681,39258.0,39252.0,0.127761]
[1645891404479,0.00033681,39258.0,39252.0,0.178861]
[1645891404682,0.26886137,39261.0,39252.0,0.178861]
[1645891404879,0.00015686,39257.0,39252.0,0.178861]
[1645891405280,0.00015686,39257.0,39254.0,0.127757]
[1645891405883,0.26864585,39262.0,39254.0,0.127757]
[1645891406082,0.00033786,39257.0,39254.0,0.127757]
[1645891406482,0.00033786,39257.0,39255.0,0.3]
[1645891406740,0.00033786,39257.0,39256.0,0.227748]
[1645891406934,0.00033786,39257.0,39256.0,1.28064755]
[1645891407133,0.3174,39266.0,39256.0,1.28064755]
[1645891407532,0.00033786,39258.0,39256.0,1.28064755]
[1645891407734,0.00033786,39258.0,39257.0,0.3]
[1645891407939,0.00033786,39258.0,39257.0,0.178843]
[1645891408141,0.00033786,39258.0,39257.0,0.228843]
[1645891408336,0.3174,39266.0,39257.0,0.2283837]
[1645891408536,0.3174,39266.0,39258.0,0.127738]
[1645891408739,0.3174,39266.0,39258.0,0.178838]
[1645891408937,0.5322146,39266.0,39258.0,0.178838]
[1645891409338,0.20572364,39264.0,39258.0,0.178838]
[1645891409838,0.5322146,39266.0,39258.0,0.178838]
[1645891410038,0.0095586,39259.0,39258.0,0.178838]
[1645891410599,0.0095586,39259.0,39258.0,0.478838]
[1645891410801,0.0095586,39259.0,39258.0,0.480838]
[1645891411201,0.0095586,39259.0,39258.0,0.180838]
[1645891411604,0.0095586,39259.0,39258.0,0.129738]
[1645891411801,0.0095586,39259.0,39258.0,0.002]
[1645891412201,0.0095586,39259.0,39248.0,0.31017]
[1645891412503,0.0095586,39259.0,39253.0,0.002]
[1645891412701,0.0095586,39259.0,39254.0,0.127755]
[1645891413101,0.08005397,39253.0,39250.0,0.3]
[1645891413301,0.08005397,39253.0,39248.0,0.01017]
[1645891414535,0.00015684,39252.0,39248.0,0.01017]
[1645891415536,0.08005397,39253.0,39248.0,0.01017]
[1645891415738,0.00015684,39252.0,39248.0,0.073882]
[1645891415939,0.00015684,39252.0,39249.0,0.0511]
[1645891416137,0.00015684,39252.0,39249.0,0.4011]
[1645891416337,0.00015684,39252.0,39250.0,0.06370797]
[1645891416538,0.00015684,39252.0,39251.0,0.47134189]
[1645891416739,0.08005397,39253.0,39251.0,0.57134189]
[1645891416940,0.08040462,39253.0,39252.0,0.3]
[1645891417985,0.08005397,39253.0,39252.0,0.3]
[1645891420588,0.08005397,39253.0,39252.0,0.302]
[1645891421391,0.08005397,39253.0,39252.0,0.002]
[1645891421835,0.08005397,39253.0,39251.0,0.27134189]
[1645891423335,0.08005397,39253.0,39251.0,0.1]
[1645891423534,0.08005397,39253.0,39251.0,0.05]
[1645891423734,0.08005397,39253.0,39249.0,0.11018]
[1645891424336,0.18146008,39252.0,39249.0,0.06018]
[1645891424534,0.18146008,39252.0,39249.0,0.01018]
[1645891424935,0.18146008,39252.0,39244.0,0.002]
[1645891425590,0.18179991,39252.0,39244.0,0.002]
[1645891425785,0.18179991,39252.0,39241.0,0.7768]
[1645891425985,0.18179991,39252.0,39241.0,0.8768]
[1645891426386,0.18146008,39252.0,39241.0,0.8768]
[1645891426787,0.00033985,39249.0,39241.0,0.8768]
[1645891426985,0.00033985,39249.0,39243.0,0.063724]
[1645891427387,0.00033985,39249.0,39244.0,0.20851911]
[1645891427587,0.29486857,39253.0,39244.0,0.27223766]
[1645891427787,0.08005397,39253.0,39244.0,0.37223766]
[1645891427988,0.00033985,39249.0,39244.0,0.49966766]
[1645891428390,0.00033985,39249.0,39244.0,1.27646766]
[1645891428590,0.00033985,39249.0,39244.0,1.27946766]
[1645891428788,0.08005397,39253.0,39244.0,1.27946766]
[1645891428989,0.08005397,39253.0,39251.0,0.21820645]
[1645891429740,0.08005397,39253.0,39251.0,0.31820645]
[1645891430537,0.08005397,39253.0,39251.0,0.32020645]
[1645891430940,0.08005397,39253.0,39251.0,0.38391245]
[1645891431540,0.08005397,39253.0,39251.0,0.43501245]
[1645891431838,0.08005397,39253.0,39251.0,0.43301245]
[1645891432538,0.08005397,39253.0,39251.0,1.21181245]
[1645891433789,0.08005397,39253.0,39251.0,1.20981245]
[1645891434688,0.08005397,39253.0,39252.0,0.20696441]
[1645891435289,0.08005397,39253.0,39252.0,0.84259682]
[1645891435491,0.08005397,39253.0,39252.0,0.89369682]
[1645891435888,0.08005397,39253.0,39252.0,0.91913682]
[1645891436091,0.08005397,39253.0,39252.0,0.25806441]
[1645891436290,0.08005397,39253.0,39252.0,0.35806441]
[1645891438645,0.08005397,39253.0,39252.0,0.36106441]
[1645891439343,0.08005397,39253.0,39252.0,0.26106441]
[1645891439544,0.08005397,39253.0,39252.0,0.0541]
[1645891439745,0.08005397,39253.0,39246.0,0.127426]
[1645891440588,0.17590524,39251.0,39246.0,0.130426]
[1645891441195,0.17622336,39251.0,39246.0,0.130426]
[1645891441489,0.17622336,39251.0,39246.0,0.230426]
[1645891441693,0.00031812,39251.0,39246.0,0.29414218]
[1645891441888,0.00031812,39251.0,39246.0,0.29114218]
[1645891442090,0.08005397,39253.0,39247.0,0.063712]
[1645891442291,0.00031813,39250.0,39247.0,0.063712]
[1645891442691,0.00031813,39250.0,39249.0,0.23007828]
[1645891442892,0.00031813,39250.0,39249.0,0.28007828]
[1645891443092,0.00031813,39250.0,39249.0,0.33007828]
[1645891443291,0.08005397,39253.0,39249.0,0.33007828]
[1645891443492,0.00031813,39251.0,39249.0,0.33007828]
[1645891444342,0.08005397,39253.0,39249.0,0.33007828]
[1645891444847,0.00031815,39252.0,39249.0,0.33007828]
[1645891445044,0.00031815,39252.0,39249.0,0.39378828]
[1645891445442,0.00031815,39252.0,39249.0,1.17058828]
[1645891445643,0.00031815,39252.0,39249.0,0.39378828]
[1645891445843,0.08005397,39253.0,39249.0,0.39378828]
[1645891446044,0.00031814,39252.0,39249.0,1.17014868]
[1645891446246,0.00031814,39252.0,39250.0,0.12740775]
[1645891446443,0.00031814,39252.0,39251.0,0.0511]
[1645891446642,0.00031814,39252.0,39251.0,0.8279]
[1645891447045,0.08005397,39253.0,39251.0,0.8779]
[1645891447342,0.08037356,39253.0,39251.0,1.118997]
[1645891448194,0.08005397,39253.0,39252.0,0.7768]
[1645891448394,0.08005397,39253.0,39252.0,0.0511]
[1645891449793,0.08005397,39253.0,39252.0,0.8279]
[1645891450594,0.08005397,39253.0,39252.0,0.83809]
[1645891452537,0.08005397,39253.0,39252.0,0.84009]
[1645891452738,0.08005397,39253.0,39252.0,0.8299]
[1645891453840,0.08005397,39253.0,39252.0,0.8279]
[1645891454340,0.08005397,39253.0,39252.0,0.3511]
[1645891456886,0.08005397,39253.0,39252.0,1.1279]
[1645891459091,0.0095586,39259.0,39253.0,1.2]
[1645891459360,0.0045586,39259.0,39257.0,0.7768]
[1645891459555,0.0045586,39259.0,39256.0,0.06369002]
[1645891459556,0.0045586,39259.0,39258.0,1.1279]
[1645891459754,0.0045586,39259.0,39258.0,1.2279]
[1645891460156,0.0045586,39259.0,39258.0,1.41522842]
[1645891460555,0.0045586,39259.0,39258.0,1.41722842]
[1645891461155,0.0045586,39259.0,39258.0,0.64042842]
[1645891461355,0.0045586,39259.0,39258.0,0.34042842]
[1645891461556,0.0045586,39259.0,39258.0,0.64042842]
[1645891461957,0.0045586,39259.0,39258.0,0.63842842]
[1645891462354,0.0045586,39259.0,39258.0,1.41522842]
[1645891462554,0.0045586,39259.0,39258.0,1.41722842]
[1645891463995,0.0045586,39259.0,39258.0,0.64042842]
[1645891464598,0.0045586,39259.0,39258.0,0.28331292]
[1645891464797,0.0045586,39259.0,39258.0,1.11011292]
[1645891465196,0.0045586,39259.0,39258.0,0.26898838]
[1645891466096,0.0045586,39259.0,39258.0,0.31898838]
[1645891466298,0.0045586,39259.0,39258.0,1.09578838]
[1645891466737,0.0045586,39259.0,39258.0,1.09778838]
[1645891466938,0.0045586,39259.0,39258.0,1.14888838]
[1645891467941,0.0045586,39259.0,39258.0,1.14688838]
[1645891468940,0.0045586,39259.0,39258.0,1.09578838]
[1645891469342,0.00034019,39260.0,39259.0,1.9768]
[1645891469544,0.00034019,39260.0,39259.0,2.05334]
[1645891469748,0.25503691,39270.0,39259.0,2.79144]
[1645891469946,0.32255537,39275.0,39259.0,2.79144]
[1645891469947,0.21503691,39275.0,39269.0,0.7768]
[1645891470147,0.3763146,39281.0,39271.0,0.7768]
[1645891470148,0.21503691,39277.0,39271.0,0.7768]
[1645891470345,0.3763146,39283.0,39270.0,0.37654]
[1645891470346,0.21503691,39278.0,39273.0,0.7768]
[1645891470590,0.21503691,39279.0,39275.0,0.7768]
[1645891470896,0.21503691,39279.0,39277.0,0.7768]
[1645891471091,0.21503691,39280.0,39278.0,0.8279]
[1645891471290,0.21503691,39280.0,39278.0,0.164767]
[1645891471291,0.0003401,39279.0,39278.0,0.164767]
[1645891472092,0.21503691,39281.0,39278.0,0.164767]
[1645891472593,0.21503691,39279.0,39278.0,0.164767]
[1645891472794,0.00034008,39280.0,39278.0,0.164767]
[1645891473394,0.21503691,39281.0,39278.0,0.164767]
[1645891473595,0.00034008,39281.0,39278.0,0.464767]
[1645891474243,0.00034008,39281.0,39279.0,0.8404595]
[1645891474448,0.00034008,39281.0,39280.0,0.3511]
[1645891474645,0.21503691,39285.0,39281.0,0.7768]
[1645891474849,0.22697202,39287.0,39282.0,0.0511]
[1645891475043,0.22697202,39287.0,39282.0,0.114758]
[1645891475244,0.21503691,39286.0,39282.0,0.114758]
[1645891475446,0.22697202,39287.0,39282.0,0.114758]
[1645891475646,0.21503691,39285.0,39282.0,0.0511]
[1645891477047,0.21503691,39286.0,39282.0,0.0511]
[1645891477244,0.01193511,39287.0,39282.0,0.0511]
[1645891477245,0.21518599,39285.0,39282.0,0.0511]
[1645891477644,0.00014908,39285.0,39282.0,0.0511]
[1645891478293,0.22697202,39287.0,39282.0,0.0511]
[1645891478494,0.00035352,39285.0,39282.0,0.0511]
[1645891479495,0.31503691,39285.0,39282.0,0.0511]
[1645891479697,0.20923589,39283.0,39282.0,0.0511]
[1645891479898,0.20923589,39283.0,39277.0,0.057]
[1645891480101,0.20923589,39283.0,39277.0,0.1541]
[1645891480498,0.20923589,39283.0,39277.0,0.1041]
[1645891480499,0.4242728,39283.0,39277.0,0.1041]
[1645891480698,0.20923589,39283.0,39277.0,0.1041]
[1645891480897,0.00034033,39282.0,39277.0,0.1041]
[1645891481097,0.00034033,39282.0,39277.0,0.1011]
[1645891481741,0.20923589,39283.0,39277.0,0.1011]
[1645891482142,0.00034033,39281.0,39277.0,0.1011]
[1645891482943,0.20923589,39283.0,39277.0,0.1011]
[1645891483243,0.01193511,39287.0,39278.0,0.06366462]
[1645891483244,0.00034034,39281.0,39278.0,0.06366462]
[1645891483442,0.00034034,39281.0,39278.0,0.19098762]
[1645891484243,0.21503691,39285.0,39278.0,0.40395144]
[1645891484445,0.00034122,39281.0,39279.0,0.3]
[1645891484644,0.00034122,39281.0,39279.0,0.414761]
[1645891484845,0.00034122,39281.0,39280.0,0.3]
[1645891485493,0.21503691,39285.0,39280.0,0.3]
[1645891485693,0.00034122,39282.0,39280.0,0.3]
[1645891485893,0.00034122,39282.0,39281.0,0.0511]
[1645891486493,0.00034122,39282.0,39281.0,0.8279]
[1645891486693,0.01193511,39287.0,39281.0,1.1279]
[1645891486894,0.00034121,39283.0,39281.0,1.1299]
[1645891487095,0.00034121,39283.0,39281.0,1.193558]
[1645891487297,0.00034121,39283.0,39282.0,0.3]
[1645891487497,0.00034121,39283.0,39282.0,0.3511]
[1645891487699,0.00034121,39283.0,39282.0,1.2279]
[1645891487902,0.01193511,39287.0,39282.0,1.2279]
[1645891488099,0.00034115,39284.0,39283.0,0.063658]